bitfinex/quotes_SOLUSD_20251030
["timestamp","ask_amount","ask_price","bid_price","bid_amount"]
[1761858125201,7.77748353,182.15,182.14,3.53423699]
[1761858125359,79.58616829,182.2,182.15,0.7]
[1761858125360,3.68391924,182.19,182.15,0.7]
[1761858125676,7.77753382,182.18,182.15,0.7]
[1761858125872,3.68403079,182.19,182.15,0.7]
[1761858126051,3.68403079,182.18,182.15,0.7]
[1761858126248,3.68403079,182.19,182.16,19.2138779]
[1761858126472,3.68403079,182.19,182.17,0.7]
[1761858126883,3.68403079,182.19,182.18,8.74458539]
[1761858127075,7.77693087,182.19,182.18,8.74458539]
[1761858127290,74.98015238,182.2,182.18,9.44458539]
[1761858127472,74.98015238,182.2,182.19,9.44458539]
[1761858127654,79.07253804,182.2,182.19,9.44458539]
[1761858127850,74.98015238,182.2,182.19,9.44458539]
[1761858128392,74.98015238,182.2,182.19,14.93336084]
[1761858130888,1e-08,182.2,182.19,24.72218853]
[1761858131181,5.28601591,182.32,182.19,24.72218853]
[1761858131182,7.76790563,182.3,182.2,9.78882769]
[1761858131385,12.42659058,182.32,182.26,8.74458539]
[1761858131386,7.76790563,182.29,182.26,8.74458539]
[1761858131550,4.09095994,182.28,182.26,8.74458539]
[1761858131753,4.09095994,182.28,182.27,9.44458539]
[1761858132164,4.09095994,182.32,182.27,9.44458539]
[1761858132369,4.08974732,182.31,182.3,14.23004891]
[1761858132575,0.1,182.33,182.3,14.23004891]
[1761858132780,0.1,182.33,182.31,0.7]
[1761858132989,4.18974732,182.33,182.31,0.7]
[1761858133277,4.08974732,182.32,182.31,0.7]
[1761858133470,0.1,182.33,182.31,0.7]
[1761858133890,24.78174732,182.33,182.31,0.7]
[1761858134190,4.08974732,182.32,182.31,0.7]
[1761858134363,20.692,182.33,182.31,0.7]
[1761858134681,0.1,182.33,182.31,0.7]
[1761858134871,20.692,182.33,182.31,0.7]
[1761858135191,20.692,182.33,182.31,6.18513612]
[1761858135687,0.1,182.33,182.31,0.7]
[1761858135882,20.692,182.33,182.31,0.7]
[1761858136583,20.692,182.33,182.31,14.92957931]
[1761858136584,0.1,182.33,182.31,14.92957931]
[1761858136769,0.1,182.33,182.32,8.74458539]
[1761858136967,0.1,182.33,182.32,14.88944717]
[1761858138978,0.1,182.33,182.32,24.67827486]
[1761858139185,1e-08,182.33,182.32,45.27027486]
[1761858141787,1e-08,182.33,182.32,54.01486025]
[1761858143396,1e-08,182.33,182.32,115.99918339]
[1761858143785,1e-08,182.33,182.32,95.40718339]
[1761858145283,1e-08,182.33,182.32,90.18581221]
[1761858145485,1e-08,182.33,182.32,93.70902642]
[1761858147104,1e-08,182.33,182.32,89.90148907]
[1761858147805,1e-08,182.33,182.32,93.70902642]
[1761858147999,20.592,182.43,182.4,3.52321421]
[1761858148498,23.48806811,182.5,182.4,9.00538376]
[1761858148696,0.71,182.46,182.41,4.18321421]
[1761858148878,0.71,182.46,182.42,3.52321421]
[1761858149088,0.71,182.46,182.44,3.52321421]
[1761858149288,0.71,182.46,182.43,3.52321421]
[1761858149679,24.82521421,182.46,182.4,5.48216955]
[1761858149999,4.23321421,182.45,182.4,9.00538376]
[1761858150216,0.71,182.45,182.38,6.14296024]
[1761858150408,26.78271667,182.46,182.41,3.52321421]
[1761858150594,21.302,182.46,182.41,3.52321421]
[1761858150909,21.302,182.46,182.41,0.66]
[1761858151086,26.78273096,182.46,182.42,3.52321421]
[1761858151288,0.71,182.45,182.41,3.52321421]
[1761858151489,0.71,182.45,182.4,3.52321421]
[1761858152011,0.71,182.45,182.38,19.85060362]
[1761858152309,0.71,182.45,182.4,9.00540704]
[1761858152510,0.71,182.45,182.41,3.52321421]
[1761858152913,0.71,182.45,182.42,3.52321421]
[1761858153087,0.71,182.47,182.42,3.52321421]
[1761858153796,4.23321421,182.47,182.42,3.52321421]
[1761858154310,0.71,182.46,182.42,9.00480425]
[1761858156709,0.71,182.46,182.42,5.48159004]
[1761858158519,9.7139494,182.46,182.41,3.52321421]
[1761858158816,9.7139494,182.46,182.39,5.48275673]
[1761858159113,0.71,182.45,182.4,3.52321421]
[1761858159712,0.71,182.45,182.4,4.18321421]
[1761858160127,0.71,182.45,182.41,5.48215558]
[1761858160830,24.11521421,182.42,182.32,61.7]
[1761858160991,0.71,182.41,182.32,6.14486178]
[1761858161315,3.52321421,182.39,182.34,3.52321421]
[1761858161822,4.23321421,182.39,182.34,4.18321421]
[1761858161998,0.71,182.38,182.35,5.48395941]
[1761858163517,3.52321421,182.39,182.35,5.48395941]
[1761858163718,4.23321421,182.39,182.35,5.48395941]
[1761858164026,3.52321421,182.38,182.35,5.48395941]
[1761858164193,3.52321421,182.38,182.29,30.38082769]
[1761858164194,6.19305735,182.38,182.3,0.66]
[1761858164395,3.52321421,182.35,182.3,0.66]
[1761858164617,3.52321421,182.34,182.3,0.66]
[1761858164800,4.23321421,182.34,182.3,0.66]
[1761858165000,24.82521421,182.35,182.3,4.18321421]
[1761858165225,24.82521421,182.35,182.3,9.66841197]
[1761858165420,3.52321421,182.32,182.27,4.18321421]
[1761858165610,3.52321421,182.32,182.26,3.52321421]
[1761858165813,4.23321421,182.32,182.26,3.52321421]
[1761858166006,3.52321421,182.31,182.26,3.52321421]
[1761858166201,3.52321421,182.29,182.26,5.48666739]
[1761858166507,3.52321421,182.29,182.22,10.44882769]
[1761858166508,3.52321421,182.34,182.28,3.52321421]
[1761858166705,3.52321421,182.34,182.29,3.52321421]
[1761858167207,0.71,182.35,182.3,9.00867773]
[1761858167413,21.302,182.35,182.3,9.00867773]
[1761858167613,21.302,182.35,182.3,9.66867773]
[1761858168022,0.71,182.35,182.3,9.66867773]
[1761858168706,4.76613457,182.35,182.3,9.66867773]
[1761858169223,4.05613457,182.35,182.3,9.66867773]
[1761858169523,4.76613457,182.35,182.3,9.66867773]
[1761858169702,4.05613457,182.35,182.3,9.66867773]
[1761858169903,0.71,182.34,182.3,9.66867773]
[1761858170107,0.71,182.34,182.3,6.14546352]
[1761858170332,0.71,182.34,182.3,9.66867773]
[1761858170532,4.76613457,182.34,182.3,9.66867773]
[1761858171318,4.07180157,182.33,182.3,9.00867773]
[1761858171613,0.71,182.34,182.31,5.48500482]
[1761858171814,4.78178058,182.34,182.31,5.48500482]
[1761858172323,4.07178058,182.33,182.31,5.48500482]
[1761858173220,0.71,182.34,182.31,5.48500482]
[1761858173531,4.07748951,182.33,182.31,5.48500482]
[1761858173903,0.71,182.34,182.31,5.48500482]
[1761858174228,0.71,182.34,182.3,65.22321421]
[1761858174229,4.07749015,182.33,182.3,61.7]
[1761858174425,4.07749015,182.32,182.3,61.7]
[1761858174729,4.35989977,182.34,182.3,62.36]
[1761858174939,7.81881956,182.33,182.3,67.8454123]
[1761858175118,4.08021701,182.32,182.3,67.8454123]
[1761858175434,4.35989977,182.34,182.3,67.8454123]
[1761858175636,7.82483184,182.33,182.31,0.66]
[1761858175805,6.61533837,182.41,182.32,3.52321421]
[1761858175806,3.64989977,182.38,182.32,3.52321421]
[1761858176006,3.64989977,182.38,182.31,0.66]
[1761858176007,11.47265737,182.37,182.33,9.00777517]
[1761858176212,7.82289983,182.36,182.33,9.00777517]
[1761858176419,7.82289983,182.35,182.33,9.66777517]
[1761858176712,4.08276533,182.34,182.33,9.66777517]
[1761858176926,0.71,182.4,182.33,9.00777517]
[1761858177128,3.52321421,182.38,182.33,9.00777517]
[1761858177339,2.25684255,182.34,182.29,4.08276533]
[1761858177509,7.05341759,182.33,182.28,2.25684255]
[1761858177838,4.79657504,182.32,182.28,0.66]
[1761858178137,4.08657504,182.32,182.29,6.14576444]
[1761858179446,2.25684255,182.33,182.29,6.14576444]
[1761858179627,4.08827801,182.32,182.29,6.14576444]
[1761858179939,2.25684255,182.33,182.28,2.25684255]
[1761858179940,4.08827801,182.31,182.28,5.48606539]
[1761858180121,8.44140842,182.33,182.28,0.69]
[1761858180434,8.44140842,182.33,182.23,15.97502831]
[1761858180435,2.25684255,182.29,182.23,15.97502831]
[1761858180750,2.25684255,182.25,182.21,5.48817298]
[1761858180904,2.25684255,182.24,182.21,5.48817298]
[1761858181244,2.25684255,182.22,182.19,0.69]
[1761858181460,2.25684255,182.2,182.16,0.69]
[1761858181809,2.95684255,182.2,182.16,6.17944736]
[1761858182011,2.25684255,182.19,182.16,5.48944736]
[1761858182906,2.95684255,182.2,182.16,5.48944736]
[1761858183327,6.45644404,182.2,182.16,5.48944736]
[1761858183645,5.75644404,182.18,182.14,6.38014811]
[1761858184226,5.75644404,182.19,182.15,0.69]
[1761858184734,0.7,182.22,182.15,0.69]
[1761858184916,8.10179631,182.31,182.19,5.75644404]
[1761858184917,27.04844404,182.25,182.19,5.75644404]
[1761858185116,0.7,182.27,182.21,5.75644404]
[1761858185333,5.75644404,182.26,182.16,9.78882769]
[1761858185545,5.75644404,182.25,182.2,5.75644404]
[1761858185741,5.75644404,182.25,182.19,5.75644404]
[1761858185940,27.04844404,182.25,182.21,5.48817298]
[1761858186445,21.292,182.25,182.21,5.48817298]
[1761858187422,0.7,182.24,182.21,5.48817298]
[1761858187913,20.592,182.25,182.21,5.48817298]
[1761858188115,20.592,182.25,182.22,0.69]
[1761858189936,5.75644404,182.24,182.2,62.39]
[1761858190539,5.75644404,182.24,182.2,67.87840674]
[1761858190739,21.292,182.25,182.2,5.48840674]
[1761858190740,20.592,182.25,182.2,5.48840674]
[1761858190922,20.592,182.25,182.21,0.69]
[1761858191537,26.34844404,182.27,182.21,0.69]
[1761858191824,31.8348231,182.27,182.21,0.69]
[1761858192020,31.8348231,182.27,182.21,6.17805379]
[1761858192222,32.5348231,182.27,182.21,6.17805379]
[1761858192926,32.5348231,182.27,182.22,0.69]
[1761858193131,27.04844404,182.27,182.22,0.69]
[1761858193536,26.34844404,182.27,182.22,0.69]
[1761858193744,27.04844404,182.27,182.22,0.69]
[1761858194085,27.04844404,182.27,182.23,5.48757065]
[1761858194475,0.7,182.31,182.24,0.69]
[1761858194684,0.7,182.31,182.25,5.75644404]
[1761858194858,6.45644404,182.31,182.25,5.75644404]
[1761858195053,26.34844404,182.31,182.26,0.69]
[1761858195253,31.83366572,182.31,182.26,0.69]
[1761858195480,32.50366572,182.31,182.26,0.69]
[1761858196754,32.50366572,182.31,182.26,6.17660565]
[1761858198255,31.83366572,182.31,182.26,6.17660565]
[1761858198468,6.15555111,182.3,182.26,6.17660565]
[1761858198659,6.15555111,182.3,182.26,0.69]
[1761858198859,26.34844404,182.31,182.26,0.7]
[1761858199060,21.262,182.31,182.26,0.7]
[1761858199375,27.01844404,182.31,182.26,0.7]
[1761858199875,32.50364194,182.31,182.26,6.18650651]
[1761858200065,26.7471979,182.31,182.26,6.18650651]
[1761858200284,0.67,182.3,182.26,0.7]
[1761858201367,0.67,182.3,182.26,6.18659134]
[1761858201752,26.34844404,182.27,182.15,61.7]
[1761858201982,5.75644404,182.25,182.19,5.48877545]
[1761858202363,5.75644404,182.25,182.2,0.7]
[1761858202881,6.42644404,182.25,182.2,0.7]
[1761858203179,5.75644404,182.23,182.17,6.45644404]
[1761858203381,5.75644404,182.23,182.15,75.42486973]
[1761858203382,2.25998345,182.23,182.18,0.7]
[1761858203569,27.60427311,182.22,182.16,19.2138779]
[1761858203772,6.34246113,182.21,182.15,6.1898962]
[1761858204083,2.25998345,182.21,182.16,0.7]
[1761858204382,8.41824257,182.21,182.16,0.7]
[1761858204585,6.3438831,182.2,182.16,0.7]
[1761858204781,2.92998345,182.2,182.16,0.7]
[1761858205794,2.92998345,182.2,182.16,6.18963739]
[1761858206289,8.41846797,182.2,182.14,6.39009459]
[1761858206475,4.08597314,182.19,182.14,6.39009459]
[1761858206865,4.08597314,182.19,182.15,0.7]
[1761858207259,7.74817186,182.21,182.15,0.7]
[1761858207465,4.08604259,182.2,182.16,5.4896794]
[1761858207773,22.85198345,182.21,182.16,5.4896794]
[1761858207972,23.52198345,182.21,182.16,6.1896794]
[1761858208284,29.01021878,182.21,182.16,6.1896794]
[1761858208485,4.08651238,182.2,182.16,5.4896794]
[1761858208681,29.01021878,182.21,182.17,0.7]
[1761858208876,4.08665461,182.2,182.17,0.7]
[1761858209056,29.01021878,182.21,182.17,0.7]
[1761858209589,28.34021878,182.21,182.15,5.48990296]
[1761858209770,2.25998345,182.19,182.14,0.9]
[1761858209971,4.08720671,182.18,182.14,6.39025278]
[1761858210310,4.08720671,182.18,182.14,5.69025278]
[1761858210462,4.08720671,182.18,182.15,0.7]
[1761858211389,2.94998345,182.19,182.15,6.1899719]
[1761858211564,0.69,182.19,182.15,6.1899719]
[1761858211764,2.25998345,182.2,182.15,6.1899719]
[1761858211765,4.08606695,182.2,182.15,6.1899719]
[1761858211966,0.69,182.19,182.15,6.1899719]
[1761858212190,4.77606695,182.19,182.15,6.1899719]
[1761858214277,4.77606695,182.19,182.14,0.2]
[1761858214278,0.69,182.18,182.14,0.2]
[1761858214464,4.77606695,182.18,182.14,0.2]
[1761858215278,21.282,182.22,182.15,0.7]
[1761858215483,6.34596027,182.21,182.15,0.7]
[1761858215683,4.08597682,182.2,182.15,0.7]
[1761858215988,6.34596027,182.2,182.15,0.7]
[1761858216185,4.08597682,182.19,182.15,0.7]
[1761858216378,2.25998345,182.18,182.14,0.2]
[1761858216594,2.94998345,182.18,182.14,0.2]
[1761858216998,0.69,182.17,182.14,5.69026936]
[1761858217985,4.08702581,182.18,182.14,6.39026936]
[1761858218191,29.03098858,182.19,182.15,0.7]
[1761858219291,4.08783895,182.18,182.14,5.69026936]
[1761858219485,4.08783895,182.18,182.14,0.9]
[1761858219703,0.69,182.17,182.14,0.2]
[1761858220290,2.25998345,182.16,182.14,0.2]
[1761858220482,4.08964557,182.15,182.14,0.2]
[1761858220816,6.34962902,182.15,182.14,0.2]
[1761858222497,4.08964557,182.15,182.14,0.2]
[1761858222700,23.54198345,182.16,182.14,0.2]
[1761858223313,4.09342947,182.15,182.14,0.2]
[1761858224189,23.54198345,182.16,182.14,0.2]
[1761858224389,4.09534859,182.15,182.14,0.2]
[1761858225005,22.85198345,182.16,182.14,0.2]
[1761858225216,4.09491102,182.15,182.14,0.2]
[1761858226614,2.25998345,182.16,182.14,0.2]
[1761858227016,4.09423095,182.15,182.14,0.2]
[1761858228308,2.25998345,182.16,182.14,0.2]
[1761858228820,2.25998345,182.19,182.15,0.7]
[1761858228998,4.09262764,182.18,182.15,0.7]
[1761858229195,6.35261109,182.18,182.15,0.7]
[1761858229397,4.09262764,182.17,182.15,0.7]
[1761858229808,28.34059729,182.2,182.15,6.18993894]
[1761858230010,4.09234847,182.19,182.15,6.18993894]
[1761858230306,4.09234847,182.19,182.16,0.7]
[1761858232342,6.35233192,182.19,182.16,0.7]
[1761858232518,2.25998345,182.19,182.16,6.18959347]
[1761858233217,28.34059729,182.2,182.17,0.7]
[1761858233424,4.09227125,182.19,182.17,0.7]
[1761858234338,22.85198345,182.2,182.17,0.7]
[1761858234525,23.54198345,182.2,182.16,5.48959347]
[1761858234712,23.54198345,182.2,182.16,6.18959347]
[1761858235230,22.85198345,182.2,182.17,6.18926371]
[1761858235413,20.592,182.2,182.17,6.18926371]
[1761858235914,2.25998345,182.23,182.18,0.7]
[1761858236113,20.592,182.22,182.18,2.95998345]
[1761858236526,20.592,182.22,182.19,0.7]
[1761858236812,2.94998345,182.24,182.19,0.7]
[1761858237030,2.94998345,182.26,182.2,2.25998345]
[1761858237231,2.94998345,182.26,182.21,5.48817298]
[1761858237436,2.25998345,182.3,182.24,2.25998345]
[1761858237734,20.592,182.28,182.25,2.25998345]
[1761858237919,20.592,182.28,182.26,0.7]
[1761858238120,0.69,182.31,182.26,2.95998345]
[1761858238311,20.592,182.29,182.27,0.7]
[1761858238939,0.66,182.31,182.27,0.7]
[1761858239241,0.66,182.31,182.27,6.1863444]
[1761858240349,34.35427729,182.31,182.25,9.72468687]
[1761858240544,4.74938422,182.3,182.25,9.72468687]
[1761858240753,4.74938422,182.3,182.06,17.62798289]
[1761858240754,3.52771843,182.26,182.17,0.71]
[1761858240914,3.52771843,182.26,182.14,0.2]
[1761858240915,3.52771843,182.25,182.19,3.52771843]
[1761858241337,9.01474815,182.25,182.2,6.1984742]
[1761858241848,8.27927545,182.24,182.18,6.19884349]
[1761858242060,3.52771843,182.19,182.15,0.71]
[1761858242219,20.592,182.22,182.14,3.72771843]
[1761858242421,20.592,182.22,182.18,3.52771843]
[1761858242644,3.52771843,182.24,182.19,0.71]
[1761858242914,20.592,182.25,182.2,3.52771843]
[1761858243128,4.09282392,182.24,182.2,3.52771843]
[1761858243426,4.09282392,182.24,182.21,6.19817298]
[1761858244224,13.10789229,182.24,182.21,0.71]
[1761858244426,8.28334038,182.23,182.18,9.7265549]
[1761858244732,4.18771843,182.23,182.18,9.7265549]
[1761858245039,3.52771843,182.24,182.19,4.23771843]
[1761858245438,26.0790495,182.25,182.19,4.23771843]
[1761858245439,24.11971843,182.25,182.2,6.1984742]
[1761858246047,24.11971843,182.25,182.21,0.71]
[1761858246235,29.60679686,182.25,182.21,0.71]
[1761858246551,30.26679686,182.25,182.21,0.71]
[1761858246843,30.26679686,182.25,182.2,5.4884742]
[1761858246844,8.28568226,182.24,182.18,3.52771843]
[1761858247027,4.18771843,182.24,182.19,9.01640762]
[1761858247345,20.96866295,182.29,182.23,5.48757065]
[1761858247346,4.18771843,182.28,182.23,5.48757065]
[1761858247521,4.09756189,182.27,182.23,5.48757065]
[1761858247720,4.09756189,182.27,182.24,4.23771843]
[1761858247916,0.66,182.28,182.24,4.23771843]
[1761858248336,4.75744259,182.28,182.24,4.23771843]
[1761858248531,0.66,182.28,182.23,5.48757065]
[1761858248848,0.66,182.28,182.24,3.52771843]
[1761858249053,4.75624811,182.28,182.24,3.52771843]
[1761858249361,0.66,182.28,182.24,4.23771843]
[1761858249545,0.66,182.28,182.25,5.48696844]
[1761858253428,0.66,182.28,182.25,67.18696844]
[1761858253929,20.592,182.31,182.27,3.52771843]
[1761858254340,5.48433913,182.34,182.28,4.23771843]
[1761858254558,4.74802147,182.33,182.28,65.22771843]
[1761858255043,4.74802147,182.33,182.28,65.93771843]
[1761858255238,0.66,182.32,182.28,65.93771843]
[1761858255649,0.66,182.32,182.28,71.42371995]
[1761858256641,0.66,182.32,182.28,67.18600152]
[1761858257443,0.66,182.32,182.28,61.7]
[1761858257668,3.52771843,182.3,182.28,61.7]
[1761858258162,0.66,182.32,182.28,67.18605859]
[1761858258351,0.66,182.32,182.28,67.85605859]
[1761858258663,4.18771843,182.32,182.28,67.85605859]
[1761858259358,9.01264379,182.32,182.28,61.7]
[1761858259665,4.22771843,182.31,182.28,61.7]
[1761858260376,0.7,182.3,182.28,61.7]
[1761858260756,24.11971843,182.29,182.28,61.7]
[1761858260952,20.592,182.29,182.28,61.7]
[1761858261262,20.592,182.32,182.28,67.8559602]
[1761858261651,13.70960164,182.36,182.28,67.8559602]
[1761858261652,5.48416062,182.35,182.29,0.67]
[1761858261852,24.11971843,182.34,182.29,65.89771843]
[1761858262058,24.11971843,182.34,182.3,0.67]
[1761858262745,24.11971843,182.34,182.3,6.15531547]
[1761858262940,24.81971843,182.34,182.3,6.15531547]
[1761858263145,6.18432627,182.34,182.3,0.67]
[1761858263652,24.81971843,182.34,182.3,6.15529644]
[1761858263863,21.292,182.34,182.3,6.15529644]
[1761858264254,12.65732922,182.39,182.31,0.67]
[1761858264255,30.30345553,182.36,182.31,0.67]
[1761858264458,4.22771843,182.4,182.33,3.52771843]
[1761858264658,0.7,182.4,182.35,3.52771843]
[1761858264976,0.7,182.42,182.37,5.483358]
[1761858265269,7.6042358,182.43,182.37,9.01107643]
[1761858265270,9.00928636,182.43,182.37,9.01107643]
[1761858265471,20.592,182.42,182.38,0.67]
[1761858265962,21.292,182.42,182.38,0.67]
[1761858266353,21.292,182.42,182.38,6.15302484]
[1761858266560,0.7,182.42,182.38,6.15302484]
[1761858266763,5.48128128,182.44,182.38,9.68074327]
[1761858266962,9.00899971,182.44,182.38,9.68074327]
[1761858267173,5.48092808,182.46,182.4,3.52771843]
[1761858267360,3.52771843,182.46,182.4,3.52771843]
[1761858267560,4.22771843,182.46,182.4,4.19771843]
[1761858267747,4.22771843,182.46,182.4,3.52771843]
[1761858267951,30.3001124,182.47,182.41,4.19771843]
[1761858268353,30.3001124,182.47,182.42,5.48185505]
[1761858268558,9.7081124,182.47,182.42,6.19185505]
[1761858268766,3.52771843,182.49,182.43,0.71]
[1761858268954,4.24771843,182.49,182.43,0.71]
[1761858269148,20.592,182.48,182.43,4.23771843]
[1761858269347,4.24771843,182.49,182.43,4.23771843]
[1761858269756,0.72,182.5,182.44,0.71]
[1761858269972,24.83971843,182.5,182.44,4.23771843]
[1761858270467,9.72770781,182.49,182.43,3.52771843]
[1761858270674,9.72770781,182.49,182.43,9.7192665]
[1761858271265,3.52771843,182.47,182.42,3.52771843]
[1761858271462,3.52771843,182.47,182.42,65.22771843]
[1761858271668,4.24771843,182.47,182.42,71.41954547]
[1761858271877,4.24771843,182.47,182.43,0.71]
[1761858272769,4.24771843,182.47,182.43,6.19151091]
[1761858273482,0.72,182.49,182.43,0.71]
[1761858273670,0.72,182.49,182.45,3.52771843]
[1761858273863,20.592,182.49,182.45,3.52771843]
[1761858274068,0.1,182.51,182.47,3.52771843]
[1761858274274,0.1,182.51,182.48,4.23771843]
[1761858274469,0.1,182.51,182.49,6.18975231]
[1761858275065,0.1,182.51,182.5,4.23771843]
[1761858276384,0.1,182.51,182.49,5.47975231]
[1761858276593,0.1,182.51,182.48,3.52771843]
[1761858276798,3.52771843,182.5,182.45,6.19091037]
[1761858277097,3.52771843,182.5,182.46,0.71]
[1761858277697,3.52771843,182.47,182.44,9.00633491]
[1761858277916,3.52771843,182.47,182.36,61.7]
[1761858277917,20.592,182.48,182.37,0.71]
[1761858277918,3.52771843,182.45,182.37,0.71]
[1761858278210,3.52771843,182.43,182.38,3.52771843]
[1761858278371,20.592,182.46,182.38,3.52771843]
[1761858278572,3.52771843,182.44,182.39,6.19275673]
[1761858279103,3.52771843,182.44,182.4,0.71]
[1761858279270,8.72348671,182.44,182.4,0.71]
[1761858279687,8.72348671,182.43,182.39,5.48275673]
[1761858279874,9.44348671,182.43,182.39,5.48275673]
[1761858280202,9.44348671,182.43,182.39,6.19275673]
[1761858280499,8.72348671,182.41,182.37,6.19319475]
[1761858280987,8.72348671,182.4,182.37,5.48319475]
[1761858281189,8.72348671,182.4,182.37,6.19319475]
[1761858281487,8.72348671,182.42,182.38,0.71]
[1761858281695,8.72348671,182.4,182.37,5.48319475]
[1761858281987,8.72348671,182.4,182.35,23.14322178]
[1761858281988,8.72348671,182.4,182.36,5.48365869]
[1761858282191,8.72348671,182.39,182.36,5.48365869]
[1761858282370,8.72348671,182.39,182.36,6.19365869]
[1761858282570,8.72348671,182.4,182.36,6.19365869]
[1761858283072,8.72348671,182.4,182.36,67.89365869]
[1761858283269,8.72348671,182.39,182.36,67.18365869]
[1761858284093,8.72348671,182.39,182.36,67.89365869]
[1761858284402,9.44348671,182.38,182.34,67.18400752]
[1761858284572,8.72348671,182.38,182.34,67.89400752]
[1761858284893,0.72,182.39,182.35,0.71]
[1761858284894,9.44348671,182.39,182.35,0.71]
[1761858285493,0.72,182.38,182.34,67.18423261]
[1761858285787,0.72,182.38,182.34,61.7]
[1761858285788,8.72348671,182.37,182.34,61.7]
[1761858285986,8.72348671,182.37,182.33,5.48456096]
[1761858286290,8.72348671,182.37,182.33,6.19456096]
[1761858286486,9.44348671,182.37,182.33,6.19456096]
[1761858286788,8.72348671,182.37,182.33,6.19456096]
[1761858286995,9.44348671,182.37,182.33,6.19456096]
[1761858287375,8.72348671,182.36,182.32,67.1848516]
[1761858287680,8.72348671,182.36,182.32,67.8948516]
[1761858288299,8.72348671,182.36,182.26,0.71]
[1761858288300,8.72348671,182.33,182.26,0.71]
[1761858288600,8.72348671,182.33,182.27,8.72348671]
[1761858288992,8.72348671,182.33,182.28,0.71]
[1761858289600,9.44348671,182.33,182.28,0.71]
[1761858289796,8.72348671,182.32,182.28,0.71]
[1761858290008,8.72348671,182.32,182.29,5.48576444]
[1761858292300,20.592,182.36,182.28,5.48605696]
[1761858292301,8.72348671,182.3,182.28,5.48605696]
[1761858292510,0.72,182.31,182.28,5.48605696]
[1761858292716,8.72348671,182.3,182.26,5.48655926]
[1761858292882,0.72,182.31,182.26,5.48655926]
[1761858292883,8.72348671,182.29,182.26,5.48655926]
[1761858293308,8.72348671,182.29,182.26,6.19655926]
[1761858294119,8.72348671,182.28,182.25,13.71728592]
[1761858294896,8.72348671,182.28,182.25,14.42728592]
[1761858295978,8.72348671,182.28,182.25,19.91425436]
[1761858297083,8.72348671,182.28,182.25,6.19696844]
[1761858297284,8.72348671,182.28,182.23,13.71889484]
[1761858297285,20.592,182.26,182.23,5.48757027]
[1761858297687,30.03548671,182.26,182.23,5.48757027]
[1761858298286,8.72348671,182.25,182.21,5.48817298]
[1761858298788,8.72348671,182.25,182.21,6.14817298]
[1761858299392,5.75285355,182.25,182.21,6.14817298]
[1761858300411,0.72,182.3,182.23,5.75285355]
[1761858300607,0.72,182.3,182.24,5.75285355]
[1761858300608,10.54705602,182.3,182.24,5.75285355]
[1761858300809,5.75285355,182.28,182.22,9.38348671]
[1761858301015,5.75285355,182.23,182.16,0.66]
[1761858301307,5.75285355,182.23,182.16,22.91858929]
[1761858301308,0.72,182.23,182.16,22.91858929]
[1761858301511,5.75285355,182.21,182.16,22.91858929]
[1761858301699,5.75285355,182.2,182.15,5.48998078]
[1761858302009,5.75285355,182.17,182.14,6.35022579]
[1761858302200,5.75285355,182.18,182.14,6.35022579]
[1761858302508,5.75285355,182.17,182.14,16.7075522]
[1761858302697,5.75285355,182.17,182.14,5.69020495]
[1761858302896,5.75285355,182.19,182.15,0.66]
[1761858303218,5.75285355,182.22,182.16,5.75285355]
[1761858303413,0.72,182.23,182.18,5.75285355]
[1761858303596,6.47285355,182.23,182.19,0.66]
[1761858303795,5.48673637,182.26,182.19,0.66]
[1761858303796,6.47285355,182.26,182.2,5.75285355]
[1761858303988,0.72,182.26,182.21,5.75285355]
[1761858304188,0.72,182.26,182.22,5.4878718]
[1761858304491,5.75285355,182.27,182.22,11.90072535]
[1761858304694,6.47285355,182.27,182.22,11.90072535]
[1761858305515,6.47285355,182.27,182.22,25.62040485]
[1761858305926,9.78882769,182.31,182.22,25.62040485]
[1761858305927,6.47285355,182.29,182.24,5.75285355]
[1761858306397,0.72,182.32,182.26,5.75285355]
[1761858306602,6.47285355,182.32,182.26,5.75285355]
[1761858307112,6.47285355,182.31,182.25,6.41285355]
[1761858307319,5.75285355,182.3,182.25,6.41285355]
[1761858307905,6.47285355,182.3,182.26,5.48666739]